bitfinex-derivatives/quotes_SOLF0:USTF0_20250919
["timestamp","ask_amount","ask_price","bid_price","bid_amount"]
[1758312017052,7.31,236.19,236.07,48.4]
[1758312017355,7.31,236.19,236.11,0.02705139]
[1758312017760,124.0,236.18,236.11,0.02705139]
[1758312017950,3.809,236.16,236.11,0.02705139]
[1758312018155,3.809,236.16,236.11,7.02705139]
[1758312018554,3.8092,236.14,236.11,0.02705139]
[1758312018957,7.31,236.13,236.11,0.02705139]
[1758312019149,59.2485,236.17,236.11,0.02705139]
[1758312019354,7.31,236.18,236.11,0.02705139]
[1758312020254,3.8093,236.14,236.11,0.02705139]
[1758312020450,7.31,236.13,236.11,0.02705139]
[1758312020657,66.5682,236.13,236.03,44.0]
[1758312021150,3.81,236.1,236.03,44.0]
[1758312021357,7.31,236.18,236.04,7.0]
[1758312022054,7.31,236.18,236.09,7.0]
[1758312022754,124.0,236.22,236.1,3.8098]
[1758312022959,7.31,236.23,236.11,7.0]
[1758312023159,7.31,236.23,236.13,7.0]
[1758312023453,7.31,236.23,236.14,3.8092]
[1758312023758,11.99879858,236.27,236.15,7.0]
[1758312023954,7.31,236.25,236.15,7.0]
[1758312024154,7.31,236.25,236.16,83.66]
[1758312024559,0.02722648,236.22,236.16,83.66]
[1758312024860,0.02722648,236.22,236.14,103.38]
[1758312025858,3.83512648,236.22,236.14,103.38]
[1758312026249,0.02722648,236.22,236.14,103.38]
[1758312026458,0.02722648,236.22,236.15,7.0]
[1758312027053,0.02722648,236.22,236.16,3.8089]
[1758312027951,0.02722648,236.22,236.16,7.0]
[1758312028151,0.02722648,236.22,236.18,7.0]
[1758312028359,0.02722648,236.22,236.1,7.0]
[1758312028655,7.06722648,236.22,236.11,105.6]
[1758312028859,7.04,236.22,236.12,7.31]
[1758312029361,3.8083,236.2,236.13,105.6]
[1758312029661,3.8083,236.2,236.12,7.31]
[1758312029862,3.8083,236.2,236.14,105.6]
[1758312030161,3.8079,236.23,236.14,105.6]
[1758312030565,3.8079,236.23,236.15,7.31]
[1758312030760,3.8074,236.26,236.15,7.31]
[1758312031857,3.8074,236.26,236.15,11.119]
[1758312032562,3.8074,236.26,236.17,3.8087]
[1758312032563,0.02725535,236.23,236.17,3.8087]
[1758312032760,0.02725535,236.23,236.18,7.31]
[1758312032957,0.02725535,236.23,236.14,105.6]
[1758312032958,0.02725535,236.23,236.16,59.2488]
[1758312033261,0.02725535,236.23,236.21,7.31]
[1758312033459,0.02725535,236.23,236.22,105.54]
[1758312033858,0.02725535,236.23,236.22,112.85]
[1758312035364,0.02725535,236.23,236.19,105.58]
[1758312035861,0.02725535,236.23,236.19,112.89]
[1758312036863,0.02725535,236.23,236.2,7.31]
[1758312037357,0.02725535,236.23,236.15,7.31]
[1758312037557,0.02725535,236.23,236.17,7.31]
[1758312038161,0.02725535,236.23,236.21,7.31]
[1758312038360,0.02725535,236.23,236.22,113.07]
[1758312040059,3.8068,236.3,236.22,116.8779]
[1758312040465,7.04,236.31,236.22,116.8779]
[1758312040863,7.04,236.31,236.23,3.8076]
[1758312042260,3.8065,236.32,236.24,105.68]
[1758312042662,3.8065,236.32,236.25,7.31]
[1758312043364,7.04,236.38,236.26,105.72]
[1758312043564,7.04,236.38,236.26,105.74898803]
[1758312043760,3.8063,236.33,236.26,105.74898803]
[1758312043962,3.8063,236.33,236.27,105.72]
[1758312044469,3.8064,236.32,236.28,7.31]
[1758312044768,10.8464,236.32,236.29,105.74]
[1758312044961,10.8464,236.32,236.28,7.31]
[1758312045267,10.8464,236.32,236.29,40.6]
[1758312046068,10.8464,236.32,236.3,93.7]
[1758312046565,3.8064,236.32,236.3,93.7]
[1758312046961,3.8064,236.32,236.3,105.68]
[1758312048271,7.04,236.36,236.31,7.31]
[1758312048875,7.04,236.36,236.3,105.68]
[1758312049168,190.23,236.4,236.31,0.02853114]
[1758312049372,3.8058,236.36,236.31,0.02853114]
[1758312049666,3.8058,236.36,236.32,7.31]
[1758312051667,3.8053,236.38,236.31,7.33853114]
[1758312051867,11.72879858,236.44,236.31,7.33853114]
[1758312052270,3.805,236.41,236.32,7.31]
[1758312052468,7.04,236.44,236.32,7.31]
[1758312052670,7.04,236.44,236.32,59.2092]
[1758312052877,11.72879858,236.5,236.33,7.31]
[1758312053076,7.04,236.5,236.33,7.31]
[1758312053277,10.8434,236.5,236.39,7.31]
[1758312053477,7.04,236.5,236.4,105.52]
[1758312053774,3.8037,236.48,236.4,105.52]
[1758312054175,3.8043,236.44,236.39,7.33898119]
[1758312054376,7.04,236.43,236.39,0.02898119]
[1758312054571,7.04,236.43,236.4,50.3]
[1758312054876,7.04,236.43,236.39,0.02898119]
[1758312055079,7.04,236.43,236.4,98.08]
[1758312055273,3.804,236.47,236.4,98.08]
[1758312055678,10.8435,236.49,236.4,98.08]
[1758312055879,10.8435,236.49,236.41,7.31]
[1758312056280,7.04,236.33,236.15,7.31]
[1758312056472,7.04,236.33,236.13,59.2547]
[1758312056473,7.04,236.33,236.19,7.31]
[1758312056877,3.8063,236.32,236.19,7.31]
[1758312057570,3.8066,236.3,236.19,11.1183]
[1758312057775,0.02751399,236.28,236.2,7.31]
[1758312060390,0.02751399,236.28,236.19,59.2396]
[1758312060391,0.02751399,236.28,236.27,7.25]
[1758312060591,7.13,236.43,236.28,7.25]
[1758312060885,7.13,236.43,236.3,7.25]
[1758312061183,10.9346,236.43,236.33,7.25]
[1758312061385,7.13,236.43,236.33,7.25]
[1758312061579,7.13,236.43,236.34,3.8059]
[1758312062591,7.13,236.48,236.37,7.25]
[1758312062788,7.13,236.48,236.38,109.3]
[1758312063292,7.13,236.48,236.34,59.2031]
[1758312063293,7.13,236.52,236.4,7.2770832]
[1758312063889,3.8034,236.5,236.4,7.2770832]
[1758312064594,3.8037,236.48,236.4,7.2770832]
[1758312066486,3.8033,236.51,236.4,7.2770832]
[1758312066686,1.05746767,236.5,236.4,7.2770832]
[1758312066896,3.8033,236.51,236.4,11.0819832]
[1758312067296,3.8033,236.51,236.41,7.25]
[1758312068197,3.8028,236.54,236.43,7.25]
[1758312068796,10.9323,236.57,236.46,0.02679005]
[1758312068999,7.13,236.57,236.47,7.25]
[1758312069201,7.13,236.55,236.47,80.94]
[1758312070092,7.13,236.51,236.49,0.02778055]
[1758312070496,59.1592,236.52,236.49,0.02778055]
[1758312070798,66.2955,236.5,236.37,327.07]
[1758312070994,59.1669,236.49,236.37,327.07]
[1758312071201,3.8045,236.43,236.38,108.98]
[1758312071703,3.8045,236.43,236.39,108.98]
[1758312071897,3.8048,236.41,236.35,7.25]
[1758312072100,3.8048,236.41,236.36,108.94]
[1758312072399,10.9348,236.41,236.36,108.94]
[1758312072598,10.9348,236.41,236.36,116.19]
[1758312073304,10.9348,236.41,236.36,7.25]
[1758312073500,3.8048,236.41,236.37,108.92]
[1758312073693,3.8048,236.41,236.37,108.86]
[1758312074201,3.83366356,236.41,236.37,108.86]
[1758312074799,0.02886356,236.41,236.33,7.25]
[1758312075110,7.13,236.4,236.36,108.84]
[1758312075500,0.02886356,236.41,236.36,108.84]
[1758312075902,3.8055,236.37,236.33,7.25]
[1758312076202,3.8055,236.37,236.34,108.78]
[1758312076403,3.8055,236.37,236.31,7.25]
[1758312076603,3.8055,236.37,236.33,7.25]
[1758312077097,3.8055,236.37,236.32,108.8]
[1758312077303,3.83325003,236.37,236.32,108.8]
[1758312078004,3.83325003,236.37,236.27,323.89685929]
[1758312078210,0.02775003,236.37,236.3,7.25]
[1758312079902,0.02775003,236.37,236.34,7.25]
[1758312080099,10.91626464,236.5,236.36,7.25]
[1758312080299,1.05747885,236.49,236.38,7.25]
[1758312080504,10.91626464,236.5,236.39,108.64]
[1758312080810,3.8041,236.46,236.39,108.64]
[1758312081209,7.13,236.5,236.4,7.25]
[1758312082806,3.8038,236.47,236.43,0.02678543]
[1758312083016,3.8038,236.47,236.43,7.27678543]
[1758312083211,7.13,236.5,236.43,0.02678543]
[1758312083604,10.9335,236.5,236.43,0.02678543]
[1758312083912,7.13,236.55,236.43,0.02678543]
[1758312084213,1.05732536,236.54,236.43,0.02678543]
[1758312084422,3.8033,236.51,236.43,0.02678543]
[1758312084711,7.13,236.53,236.43,0.02678543]
[1758312084912,1.05736434,236.52,236.43,0.02678543]
[1758312085109,3.8035,236.5,236.43,0.02678543]
[1758312087217,3.8037,236.49,236.43,0.02678543]
[1758312088412,7.13,236.53,236.44,7.0]
[1758312088715,1.49565682,236.56,236.44,7.0]
[1758312089008,7.96731119,236.55,236.45,108.22]
[1758312089213,1.05731119,236.54,236.46,108.28]
[1758312089516,10.7126,236.55,236.46,108.28]
[1758312089715,3.8026,236.55,236.47,7.0]
[1758312090108,3.8026,236.55,236.48,0.02727878]
[1758312090815,3.8026,236.55,236.49,108.24]
[1758312092219,3.8026,236.55,236.48,0.02727878]
[1758312092416,3.8026,236.55,236.49,108.16]
[1758312092616,3.8026,236.55,236.5,108.12]
[1758312092812,6.91,236.54,236.5,108.12]
[1758312093114,6.91,236.54,236.51,108.1]
[1758312093412,3.8026,236.55,236.51,108.06]
[1758312093615,6.91,236.54,236.51,108.06]
[1758312093817,3.8026,236.55,236.51,108.06]
[1758312094014,10.7122,236.58,236.51,108.06]
[1758312094617,183.1259,236.66,236.51,108.06]
[1758312094618,3.8017,236.61,236.51,108.06]
[1758312095117,6.91,236.62,236.51,108.06]
[1758312095812,59.1375,236.61,236.5,7.0]
[1758312096007,6.91,236.6,236.51,107.98]
[1758312096210,3.8022,236.58,236.51,107.98]
[1758312096616,6.91,236.6,236.5,7.0]
[1758312096919,3.8024,236.57,236.51,75.7]
[1758312097607,3.8024,236.57,236.52,0.02730946]
[1758312097812,10.7124,236.57,236.52,7.02730946]
[1758312098318,3.8019,236.59,236.53,76.28]
[1758312098722,6.91,236.62,236.53,76.28]
[1758312099618,6.91,236.62,236.52,7.02730946]
[1758312099817,3.8018,236.6,236.53,107.76]
[1758312100721,3.8018,236.6,236.54,7.0]
[1758312100921,3.8018,236.6,236.56,7.0]
[1758312102121,3.8018,236.6,236.55,107.68]
[1758312102316,3.8018,236.6,236.56,7.0]
[1758312103119,10.7114,236.63,236.55,114.68]
[1758312103323,6.91,236.63,236.55,114.68]
[1758312104021,3.8016,236.62,236.55,7.0]
[1758312104318,6.91,236.63,236.55,7.0]
[1758312104627,6.91,236.63,236.56,77.56]
[1758312104828,6.91,236.68,236.57,7.0]
[1758312105320,6.91,236.68,236.6,0.02782582]
[1758312105621,3.8008,236.66,236.6,20.46782582]
[1758312105826,3.8008,236.66,236.61,53.48]
[1758312106026,6.91,236.69,236.62,7.0]
[1758312106826,6.91,236.69,236.63,29.90696821]
[1758312107022,6.91,236.73,236.63,29.90696821]
[1758312107322,6.91,236.73,236.63,0.02696821]
[1758312107516,3.8004,236.69,236.63,0.02696821]
[1758312107716,66.017,236.73,236.64,107.4]
[1758312108516,3.8004,236.69,236.65,7.0]
[1758312108721,59.1111,236.71,236.66,107.36]
[1758312109122,3.8006,236.67,236.66,107.36]
[1758312109326,6.91,236.74,236.66,114.36]
[1758312109529,6.91,236.74,236.66,107.36]
[1758312109718,3.8004,236.68,236.66,107.36]
[1758312109918,3.8004,236.68,236.62,7.0]
[1758312110121,3.8004,236.68,236.63,114.28]
[1758312110318,3.8004,236.68,236.64,7.0]
[1758312110519,3.8004,236.68,236.65,107.28]
[1758312111128,3.8007,236.67,236.64,0.02696751]
[1758312111427,59.109,236.72,236.64,0.02696751]
[1758312111428,59.1164,236.69,236.64,0.02696751]
[1758312111634,6.91,236.68,236.64,0.02696751]
[1758312112131,10.7108,236.66,236.64,0.02696751]
[1758312112327,3.8008,236.66,236.64,0.02696751]
[1758312112523,10.7108,236.66,236.64,0.02696751]
[1758312112727,6.91,236.65,236.64,0.02696751]
[1758312112923,3.8008,236.66,236.64,0.02696751]
[1758312113327,3.8004,236.69,236.64,0.02696751]
[1758312113523,3.8004,236.69,236.65,7.0]
[1758312113933,3.8004,236.69,236.64,0.02696751]
[1758312113934,3.8006,236.67,236.64,0.02696751]
[1758312114135,3.8006,236.67,236.65,107.18]
[1758312114934,10.7106,236.67,236.66,107.18]
[1758312115240,10.7106,236.67,236.64,0.02696751]
[1758312115429,10.7106,236.67,236.65,107.1]
[1758312115736,10.7109,236.65,236.64,0.02696751]
[1758312116741,10.7109,236.65,236.59,319.58]
[1758312116742,10.7117,236.6,236.59,319.58]
[1758312117035,10.7117,236.6,236.59,426.64]
[1758312117635,3.8017,236.6,236.59,426.64]
[1758312119142,3.8017,236.6,236.59,319.58]
[1758312119342,3.8013,236.63,236.6,7.23]
[1758312119744,6.62,236.66,236.59,426.6]
[1758312119942,6.62,236.66,236.6,107.0]
[1758312120142,3.8015,236.62,236.61,107.0]
[1758312120946,3.82798204,236.64,236.61,114.23]
[1758312121149,3.82798204,236.64,236.62,7.23]
[1758312121347,3.82798204,236.64,236.61,107.0]
[1758312121550,3.8014,236.62,236.61,107.0]
[1758312122046,0.02688204,236.64,236.61,107.0]
[1758312122446,3.8014,236.63,236.61,107.0]
[1758312123045,3.8016,236.61,236.59,319.58]
[1758312123555,6.62,236.6,236.59,319.58]
[1758312123741,3.8022,236.57,236.52,7.23]
[1758312124052,3.8022,236.57,236.53,34.26]
[1758312124447,3.82969219,236.57,236.54,7.23]
[1758312125145,3.8026,236.55,236.54,106.86]
[1758312126342,3.8029,236.53,236.47,7.23]
[1758312126546,3.8029,236.53,236.41,321.83420528]
[1758312126547,3.8029,236.53,236.49,7.23]
[1758312126747,0.02749219,236.57,236.47,7.23]
[1758312126941,59.1473,236.57,236.48,65.3]
[1758312127144,59.154,236.54,236.47,7.23]
[1758312127345,3.8034,236.5,236.48,106.8]
[1758312129444,3.8037,236.48,236.42,7.23]
[1758312129646,3.8037,236.48,236.43,106.74]
[1758312130145,3.8037,236.48,236.44,7.23]
[1758312131045,3.8037,236.48,236.43,106.74]
[1758312131243,3.8037,236.48,236.44,7.23]
[1758312131550,3.8037,236.48,236.43,106.74]
[1758312131738,3.8037,236.48,236.44,7.23]
[1758312132047,3.8034,236.5,236.44,7.23]
[1758312132444,3.8034,236.5,236.45,106.62]
[1758312132649,3.8034,236.5,236.46,7.23]
[1758312133247,3.8037,236.48,236.41,319.5]
[1758312133555,6.62,236.5,236.42,113.83]
[1758312134254,3.8041,236.46,236.42,113.83]
[1758312135253,3.8041,236.46,236.43,106.68]
[1758312136555,3.8037,236.49,236.44,7.23]
[1758312136751,0.02808015,236.51,236.44,7.23]
[1758312137152,0.02808015,236.51,236.45,106.56]
[1758312137848,3.8036,236.49,236.45,113.79]
[1758312138654,3.83128015,236.51,236.45,106.56]
[1758312142153,3.8035,236.5,236.46,7.23]
[1758312142858,3.8035,236.5,236.45,106.56]
[1758312143558,3.8035,236.5,236.46,7.23]
[1758312143758,3.8036,236.49,236.46,7.23]
[1758312144061,3.8036,236.49,236.47,106.34]
[1758312145460,3.8038,236.48,236.46,7.23]
[1758312145650,3.8038,236.48,236.47,71.28]
[1758312146460,3.8038,236.48,236.47,78.51]
[1758312146761,3.804,236.46,236.4,8.34605]
[1758312146960,65.7844,236.5,236.41,106.2]
[1758312147155,59.1687,236.48,236.4,15.57605]
[1758312147363,3.8048,236.42,236.4,8.34605]
[1758312147559,6.62,236.41,236.4,8.34605]
[1758312151768,3.8048,236.42,236.4,8.34605]
[1758312152067,10.6748,236.42,236.4,8.34605]
[1758312153866,0.02824305,236.43,236.4,8.34605]
[1758312154176,0.02824305,236.43,236.41,6.93]
[1758312154664,0.02824305,236.43,236.4,8.34605]
[1758312154863,0.02824305,236.43,236.41,6.93]
[1758312155258,0.02824305,236.43,236.4,8.34605]
[1758312155461,0.02824305,236.43,236.41,6.93]
[1758312156070,0.02824305,236.43,236.4,8.34605]
[1758312156268,0.02824305,236.43,236.41,6.93]
[1758312156469,0.02824305,236.43,236.42,113.11]
[1758312156873,0.02824305,236.43,236.4,8.34605]
[1758312157073,6.89824305,236.43,236.4,8.34605]
[1758312157864,3.8046,236.42,236.4,8.34605]
[1758312158068,10.6746,236.42,236.4,8.34605]
[1758312158770,3.8046,236.42,236.4,8.34605]
[1758312159474,10.6746,236.42,236.4,114.44605]
[1758312160278,3.8046,236.42,236.4,8.34605]
[1758312160477,3.8046,236.42,236.4,114.42605]
[1758312161075,0.02824305,236.43,236.41,6.93]
[1758312161478,0.02824305,236.43,236.4,114.42605]
[1758312161676,0.02824305,236.43,236.42,6.93]
[1758312163067,3.8039,236.47,236.41,106.02]
[1758312163576,3.8039,236.47,236.42,6.93]
[1758312163778,3.8039,236.47,236.41,109.8247]
[1758312164082,3.8035,236.5,236.42,6.93]
[1758312164280,3.8035,236.5,236.42,6.95802679]
[1758312164578,3.8035,236.5,236.44,6.93]
[1758312165672,3.8031,236.52,236.44,6.93]
[1758312166477,66.0278,236.53,236.45,105.92]
[1758312166782,1.05725945,236.52,236.45,105.92]
[1758312166968,1.05725945,236.51,236.45,105.92]
[1758312167174,66.0278,236.53,236.45,105.92]
[1758312167372,1.05727304,236.52,236.46,0.02705533]
[1758312167682,6.87,236.5,236.46,0.02705533]
[1758312167882,3.8037,236.48,236.46,0.02705533]
[1758312168770,3.8037,236.48,236.46,6.95705533]
[1758312168974,89.56283627,236.56,236.47,6.93]
[1758312169175,1.05718667,236.55,236.47,6.93]
[1758312169386,1.05718667,236.54,236.47,6.93]
[1758312169683,1.05718667,236.53,236.47,6.93]
[1758312169882,3.803,236.52,236.46,0.02705533]
[1758312170276,3.803,236.52,236.46,6.95705533]
[1758312170582,3.8027,236.54,236.46,6.95705533]
[1758312171687,84.87403769,236.56,236.46,10.76085533]
[1758312171877,78.00403769,236.56,236.46,6.95705533]
[1758312172177,1.05704528,236.55,236.46,6.95705533]
[1758312172377,1.05704528,236.54,236.47,105.82]
[1758312172579,84.87403769,236.56,236.47,105.82]
[1758312172882,66.0242,236.54,236.48,105.8]
[1758312173075,6.87,236.52,236.48,105.82]
[1758312173275,6.87,236.5,236.48,105.82]
[1758312173477,10.6735,236.49,236.48,105.82]
[1758312174577,3.8038,236.47,236.46,0.02705533]
[1758312176584,10.6738,236.47,236.46,0.02705533]
[1758312178689,3.8038,236.47,236.46,0.02705533]
[1758312179486,10.6438,236.47,236.46,0.02705533]
[1758312179682,3.8045,236.43,236.4,8.34605]
[1758312180092,6.84,236.47,236.41,6.93]
[1758312180494,3.8041,236.45,236.41,6.93]
[1758312182689,3.8041,236.45,236.4,8.34605]
[1758312182690,6.84,236.47,236.4,8.34605]
[1758312182885,1.0574218,236.46,236.4,8.34605]
[1758312183185,3.8048,236.42,236.4,8.34605]
[1758312183388,10.6448,236.42,236.4,8.34605]
[1758312184485,3.8048,236.42,236.4,15.27605]
[1758312188391,0.02671261,236.43,236.4,8.34605]
[1758312188587,0.02671261,236.43,236.41,6.93]
[1758312188789,0.02671261,236.43,236.4,8.34605]
[1758312189295,0.02671261,236.43,236.41,6.93]
[1758312190090,0.02671261,236.43,236.41,7.35]
[1758312190297,0.02671261,236.43,236.41,3.8047]
[1758312190493,0.02671261,236.43,236.42,6.93]
[1758312190690,0.02671261,236.43,236.42,8.42690465]
[1758312195097,0.02671261,236.43,236.42,113.86690465]
[1758312196598,84.84403769,236.56,236.42,113.86690465]
[1758312196599,89.53327392,236.56,236.43,6.93]
[1758312196796,1.05712355,236.55,236.47,6.93]
[1758312196999,1.05712355,236.54,236.48,105.4]
[1758312197199,84.84403769,236.56,236.49,8.42690465]
[1758312197501,1.05710372,236.55,236.5,105.38]
[1758312197702,1.05710372,236.54,236.5,112.31]
[1758312197904,84.84403769,236.56,236.5,105.38]
[1758312198200,1.05710305,236.55,236.51,6.93]
[1758312198396,84.84403769,236.56,236.51,6.93]
[1758312198695,84.84403769,236.56,236.5,112.33717185]
[1758312202202,6.18614088,236.61,236.5,112.33717185]
[1758312202203,3.8019,236.59,236.5,112.33717185]
[1758312202409,3.8019,236.59,236.52,1.49690465]
[1758312202799,6.84,236.6,236.52,1.49690465]
[1758312202998,6.84,236.6,236.53,6.93]
[1758312204603,6.84,236.58,236.51,48.88]
[1758312204801,1.0569098,236.57,236.52,89.42]
[1758312205001,6.18614088,236.59,236.52,89.42]
[1758312205002,3.8027,236.55,236.52,89.42]
[1758312205202,6.84,236.54,236.52,89.42]
[1758312205406,6.84,236.54,236.52,105.20673582]
[1758312205606,3.8027,236.55,236.52,105.20673582]
[1758312206106,3.8027,236.55,236.52,105.18673582]
[1758312206303,4.68923623,236.61,236.52,105.18673582]
[1758312206496,1.05702194,236.6,236.52,105.18673582]
[1758312206802,11.52923623,236.62,236.52,106.68364047]
[1758312206803,1.05694178,236.59,236.52,106.68364047]
[1758312207108,6.84,236.61,236.53,105.16]
[1758312207405,3.8022,236.58,236.52,0.02673582]
[1758312207607,3.8022,236.58,236.52,105.16673582]
[1758312208003,6.84,236.59,236.52,105.16673582]
[1758312208203,6.84,236.56,236.52,105.16673582]
[1758312208905,10.6425,236.56,236.52,105.16673582]
[1758312209805,10.6425,236.56,236.52,112.32673582]
[1758312210105,6.85,236.6,236.53,7.16]
[1758312210307,13.03614088,236.64,236.55,8.65690465]
[1758312210503,1.05692162,236.63,236.55,8.65690465]
[1758312210807,1.05692162,236.62,236.55,8.65690465]
[1758312211003,1.05692162,236.61,236.55,8.65690465]
[1758312211200,6.85,236.63,236.52,113.79690465]
[1758312211402,6.85,236.63,236.53,105.14]
[1758312211403,6.85,236.6,236.53,105.14]
[1758312211608,1.05692112,236.59,236.52,7.16]
[1758312212006,3.8027,236.55,236.52,52.62]
[1758312212205,3.8027,236.55,236.52,99.48]
[1758312212410,10.6527,236.55,236.52,99.48]
[1758312213810,10.6527,236.55,236.51,0.02725622]
[1758312214112,65.32434088,236.61,236.51,0.02725622]
[1758312214113,10.6528,236.54,236.51,0.02725622]
[1758312216706,3.8023,236.57,236.51,0.02725622]
[1758312217613,3.8023,236.57,236.53,7.16]
[1758312218306,10.6525,236.56,236.53,105.14]
[1758312218809,3.8025,236.56,236.53,105.14]
[1758312219112,6.85,236.55,236.53,105.14]
[1758312219302,6.85,236.61,236.53,105.14]
[1758312219508,1.05700254,236.6,236.53,105.14]
[1758312219704,4.68923623,236.62,236.53,105.14]
[1758312219905,6.85,236.55,236.51,7.18725622]
[1758312220103,59.142,236.59,236.51,0.02725622]
[1758312220309,3.8027,236.55,236.51,0.02725622]
[1758312220514,3.8027,236.55,236.51,7.18725622]
[1758312221012,10.6527,236.55,236.51,7.18725622]
[1758312224916,3.8027,236.55,236.52,7.16]
[1758312225816,3.8023,236.57,236.51,0.02725622]
[1758312226114,1.05710976,236.56,236.52,7.16]
[1758312226307,10.6523,236.57,236.52,7.16]
[1758312226615,6.85,236.56,236.52,7.16]
[1758312229410,10.6525,236.56,236.51,7.18725622]
[1758312229712,10.6525,236.56,236.52,7.16]
[1758312230617,6.85,236.55,236.52,7.16]
[1758312230817,10.6525,236.56,236.52,7.16]
[1758312231419,6.85,236.56,236.51,0.02725622]
[1758312231618,3.802,236.59,236.52,10.963]
[1758312231814,6.85,236.6,236.53,1.49690465]
[1758312232119,4.68923623,236.63,236.57,7.16]
[1758312232821,6.85,236.64,236.58,0.02834759]
[1758312232822,11.53923623,236.64,236.58,0.02834759]
[1758312233219,4.68923623,236.63,236.58,0.02834759]
[1758312233419,6.85,236.62,236.58,7.18834759]
[1758312234522,8.49053623,236.63,236.58,7.18834759]
[1758312234722,6.85,236.61,236.58,7.18834759]
[1758312234924,6.85,236.61,236.58,0.02834759]
[1758312235123,3.8015,236.62,236.58,0.02834759]
[1758312235418,6.85,236.61,236.58,0.02834759]
[1758312236618,3.8017,236.61,236.58,0.02834759]
[1758312236823,8.34690465,236.62,236.58,0.02834759]
[1758312237121,4.68923623,236.61,236.58,0.02834759]
[1758312237424,6.85,236.59,236.58,0.02834759]
[1758312237824,10.6519,236.59,236.58,0.02834759]
[1758312239227,3.8028,236.54,236.51,98.77690465]
[1758312239426,10.9228,236.54,236.51,91.61690465]
[1758312240116,10.5524,236.56,236.52,6.7]
[1758312240721,10.57982816,236.56,236.52,6.7]
[1758312241226,10.5527,236.55,236.51,1.49690465]
[1758312241427,10.5527,236.55,236.51,8.19690465]
[1758312241927,10.5527,236.55,236.51,113.27690465]
[1758312242329,0.02742816,236.56,236.52,6.7]
[1758312242529,6.77742816,236.56,236.52,6.7]
[1758312243822,6.75,236.55,236.51,1.49690465]
[1758312244023,6.75,236.55,236.52,105.08]
[1758312245027,3.8027,236.54,236.52,105.08]
[1758312245329,6.75,236.54,236.46,105.08]
[1758312246824,3.8034,236.5,236.46,105.08]
[1758312247226,3.8034,236.5,236.47,6.7]
[1758312249634,10.5534,236.5,236.47,6.7]
[1758312249931,0.02846014,236.51,236.46,105.08]
[1758312250531,0.02846014,236.51,236.47,6.7]
[1758312250929,0.02846014,236.51,236.48,105.08]
[1758312251235,0.02846014,236.51,236.5,6.7]
[1758312253537,0.02846014,236.51,236.5,111.76]
[1758312260840,10.5521,236.58,236.51,3.8031]
[1758312261730,6.75,236.58,236.5,105.06]
[1758312261935,8.49083623,236.61,236.54,6.7]
[1758312262242,3.8016,236.61,236.55,105.04]
[1758312263129,3.8016,236.61,236.56,6.72785415]
[1758312263130,10.5516,236.61,236.56,6.72785415]
[1758312263842,4.68923623,236.62,236.56,6.72785415]
[1758312264542,8.49073623,236.62,236.56,10.53005415]
[1758312264741,15.24073623,236.62,236.56,10.53005415]
[1758312264939,3.8017,236.61,236.56,6.72785415]
[1758312265237,6.75,236.62,236.56,0.02785415]
[1758312266242,3.802,236.59,236.56,0.02785415]
[1758312266444,6.75,236.62,236.56,0.02785415]